Cogmind - Beta 9.4 *** ADVENTURER MODE // 2020.02.20 @ 18:46:10 Player: Pitter Result: Self-destructed Performance ------------- Evolutions (1) 500 Regions Visited (2) 400 Robots Destroyed (44) 220 Value Destroyed (709) 709 Prototype IDs (4) 80 Alien Tech Used (0) 0 Bonus (66) 66 TOTAL SCORE: 1975 Bonus ------- High Alert Combat Kills 66 Cogmind --------- Core Integrity 78/400 Matter 129/300 Energy 85/100 System Corruption 0% Temperature Cool (0) Movement Core (100) Ox1 Location -9/Materials Parts ------- > --- POWER (1) -------- (None) > --- PROPULSION (3) --- (None) > --- UTILITY (3) ------ (None) > --- WEAPON (2) ------- Shotgun Mini Grenade Launcher > --- INVENTORY (4) ---- Assault Rifle Peak State ------------ > --- POWER ------------ (None) > --- PROPULSION ------- Flight Unit Flight Unit VTOL Module > --- UTILITY ---------- (None) > --- WEAPON ----------- Autogun Mini Grenade Launcher > --- INVENTORY -------- Light Ion Engine Assault Rifle [Rating: 8] Favorites ----------- Power Ion Engine Engine Ion Engine Propulsion Flight Unit Leg Aluminum Leg Flight Unit Flight Unit Utility Small Storage Unit Device Terrain Scanner Storage Small Storage Unit Weapon Autogun Energy Gun Medium Laser Ballistic Gun Autogun Launcher Mini Grenade Launcher Build | -11 -10 -9 ------- Run | Scr Mat Mat Slots Evolved 2 | . . 2 Power . | . . . Propulsion 1 | . . 1 Utility 1 | . . 1 Weapon . | . . . Parts Attached 21 | 2 7 12 Power 3 | . 1 2 Engine 3 | . 1 2 Core . | . . . Reactor . | . . . Propulsion 8 | . 4 4 Treads . | . . . Leg 2 | . 2 . Wheel . | . . . Hover . | . . . Flight 6 | . 2 4 Utility 4 | 1 1 2 Device 1 | . 1 . Storage 3 | 1 . 2 Processor . | . . . Hackware . | . . . Protection . | . . . Artifact . | . . . Weapon 6 | 1 1 4 Energy Gun 2 | 1 . 1 Energy Cannon . | . . . Ballistic Gun 3 | . 1 2 Ballistic Cannon . | . . . Launcher 1 | . . 1 Special Weapon . | . . . Impact Weapon . | . . . Slashing Weapon . | . . . Piercing Weapon . | . . . Special Melee Weapon . | . . . Unidentified Prototypes . | . . . Parts Lost 9 | . . 9 Power 2 | . . 2 Propulsion 6 | . . 6 Utility . | . . . Weapon 1 | . . 1 Highest Loss Streak 5 | . . 5 Average Slot Usage (%) 59 | . 93 41 Engine 8 | . 12 7 Leg 8 | . 23 . Flight 13 | . 3 18 Device 4 | . 11 . Storage 6 | . 14 1 Energy Gun 4 | . 12 . Ballistic Gun 10 | . 14 7 Launcher 3 | . . 6 Naked Turns . | . . . Heaviest Build 14 | 6 14 9 Greatest Support 20 | 3 20 13 Greatest Overweight (x) 3 | 1 3 1 Average Overweight (x) . | . . . Largest Inventory Capacity 12 | 6 6 12 Average Capacity 4 | 5 6 4 Most Carried 6 | 6 6 6 Average Carried 3 | 4 5 2 Final Capacity 6 | 6 6 4 Final Carried 6 | 6 6 1 Class Distribution -------------------- 100% | Mutant Dominant Class ---------------- Mutant | -10/Materials Mutant | -9/Materials Resources | -11 -10 -9 ----------- Run | Scr Mat Mat Matter Collected 558 | 191 110 257 Remotely . | . . . Salvage Created 670 | . 206 464 Parts 77 | . 22 55 Haulers Intercepted 1 | . . 1 Recyclers Shooed 2 | 1 1 . Parts Field Recycled . | . . . Retrieved Matter . | . . . Parts Self-Destructed . | . . . Prevented . | . . . Kills | -11 -10 -9 ------- Run | Scr Mat Mat Combat Hostiles Destroyed 33 | . 7 26 Guns 12 | . 7 5 AOE 21 | . . 21 Classes Destroyed 8 | . 2 6 Worker 5 | . . 5 Builder 2 | . . 2 Hauler 1 | . . 1 Operator 1 | . . 1 Watcher 2 | . . 2 Swarmer 23 | . 3 20 Grunt 6 | . 4 2 Sentry 4 | . . 4 Best Kill Streak 15 | . 3 15 Combat Bots Only 13 | . 3 13 Max Kills in Single Turn 5 | . 2 5 Gunslinging 1 | . 1 . Exploded 5 | . . 5 Melee . | . . . Uniques/NPCs Destroyed . | . . . Combat | -11 -10 -9 -------- Run | Scr Mat Mat Damage Taken 813 | . 98 715 Core 340 | . 18 322 Absorbed by Shields . | . . . Core Remaining (%) 96 | 100 92 . Volleys Fired 62 | 2 18 42 Largest 2 | 1 2 2 Hottest 70 | 50 70 53 Shots Fired 74 | 2 25 47 Gun 48 | 2 25 21 Cannon . | . . . Launcher 26 | . . 26 Special . | . . . Kinetic 29 | . 8 21 Thermal 19 | 2 17 . Explosive 26 | . . 26 Electromagnetic . | . . . Robot Hit Streak 22 | 2 20 22 Robot Miss Streak 2 | . 1 2 Penetration Max . | . . . Secondary Targets 1 | . 1 . Max Gunslinging Chain 1 | . 1 . Shots Hit Robots 55 | 2 20 33 Core Hits 61 | . 12 49 Critical Hits . | . . . Critical Kills . | . . . Critical Parts Destroyed . | . . . Melee Attacks . | . . . Impact . | . . . Slashing . | . . . Piercing . | . . . Sneak Attacks . | . . . Combat Hostiles . | . . . Follow-up Attacks . | . . . Damage Inflicted 2409 | 26 251 2132 Guns 561 | 26 247 288 Cannons . | . . . Explosions 1844 | . . 1844 Melee . | . . . Ramming 4 | . 4 . Kinetic 347 | . 59 288 Thermal 214 | 26 188 . Explosive 1844 | . . 1844 Electromagnetic . | . . . Impact . | . . . Slashing . | . . . Piercing . | . . . Highest Corruption . | . . . Average Corruption . | . . . Corruption Purged . | . . . Overload Shots . | . . . Overflow Damage 123 | . . 123 Projectiles . | . . . Explosions 123 | . . 123 Melee . | . . . Knockbacks . | . . . Impact . | . . . Kinetic . | . . . Secondary . | . . . Self-Inflicted Damage 79 | . 2 77 Shots 3 | . . 3 Rammed 1 | . 1 . Targets Rammed 1 | . 1 . Kicked . | . . . Crushed . | . . . Highest Temperature 116 | . 116 20 Average Temperature 29 | . 40 5 Received Heat Transfer 300 | . 66 234 Siege Activations . | . . . Robots Corrupted . | . . . Combat Hostiles . | . . . Parts Fried . | . . . Impact Corruptions . | . . . Robots Melted . | . . . Combat Hostiles . | . . . Parts Melted . | . . . Heat Transferred 629 | 74 555 . Parts Sabotaged . | . . . Parts Stolen . | . . . Parts Stripped . | . . . Power Chain Reactions . | . . . Missiles Intercepted . | . . . Alert | -11 -10 -9 ------- Run | Scr Mat Mat Peak Influence 725 | . 145 725 Average Influence 184 | . 42 286 Maximum Alert Level 3 | . . 3 Low Security (%) 67 | 100 100 46 Level 1 4 | . . 7 Level 2 26 | . . 43 Level 3 1 | . . 2 Level 4 . | . . . Level 5 . | . . . High Security . | . . . Max Security . | . . . Squads Dispatched 6 | . 2 4 Investigation 2 | . 2 . Extermination . | . . . Reinforcement 2 | . . 2 Assault 2 | . . 2 Garrison . | . . . Intercept . | . . . Construction Impeded 1 | . . 1 Haulers Reinforced . | . . . Stealth | -11 -10 -9 --------- Run | Scr Mat Mat Distress Signals 3 | . 1 2 Communications Jammed . | . . . Distress Signals . | . . . Times Spotted 53 | . 10 43 Peak Tracking Total 11 | . 4 11 Tactical Retreats 6 | . 1 5 Traps | -11 -10 -9 ------- Run | Scr Mat Mat Traps Triggered 1 | . 1 . Indirectly . | . . . Trap Hack Attempts . | . . . Triggered . | . . . Disarmed . | . . . Reprogrammed 6 | . . 6 Reused 4 | . . 4 Traps Extracted . | . . . Installed . | . . . Triggered 4 | . . 4 Machines | -11 -10 -9 ---------- Run | Scr Mat Mat Machines Disabled 3 | . . 3 Max in Single Turn 1 | . . 1 Machines Sabotaged . | . . . Garrisons Compromised . | . . . Overloaded Fab Kills . | . . . Fab Network Shutdowns . | . . . Hacking | -11 -10 -9 --------- Run | Scr Mat Mat Machines Accessed 8 | . 4 4 Terminals 7 | . 4 3 Fabricators . | . . . Repair Stations . | . . . Recycling Units . | . . . Scanalyzers 1 | . . 1 Garrison Access . | . . . Total Hacks 23 | . 14 9 Successful 13 | . 7 6 Failed 10 | . 7 3 Catastrophic 5 | . 3 2 Database Lockouts . | . . . Manual 6 | . 5 1 Terminals 21 | . 14 7 Fabricators . | . . . Repair Stations . | . . . Recycling Units . | . . . Scanalyzers 2 | . . 2 Garrison Access . | . . . Terminal Hacks 11 | . 7 4 Prototype ID Bank 2 | . 2 . Level Access Points 1 | . 1 . Terminal Index 1 | . 1 . Unreport Threat 1 | . 1 . Locate Traps 2 | . 1 1 Reprogram Traps 1 | . . 1 Recall Assault 1 | . . 1 Zone Layout 2 | . 1 1 Fabricator Hacks . | . . . Repair Station Hacks . | . . . Recycling Unit Hacks . | . . . Scanalyzer 2 | . . 2 Insert Component 1 | . . 1 Analyze 1 | . . 1 Garrison Access Hacks . | . . . Unauthorized Hacks . | . . . Terminals . | . . . Fabricators . | . . . Repair Stations . | . . . Recycling Units . | . . . Scanalyzers . | . . . Garrison Access . | . . . Data Cores Recovered . | . . . Used . | . . . Hacking Detections 5 | . 3 2 Full Trace Events 5 | . 3 2 Feedback Events . | . . . Feedback Blocked . | . . . Robot Schematics Acquired . | . . . Robots Built . | . . . Matter . | . . . Time . | . . . Total Robot Build Rating . | . . . Part Schematics Acquired 1 | . . 1 Parts Built . | . . . Matter . | . . . Time . | . . . Total Part Build Rating . | . . . Parts Repaired . | . . . Time . | . . . Parts Recycled . | . . . Recycled Matter . | . . . Retrieved Matter . | . . . Retrieved Components . | . . . Parts Scanalyzed 1 | . . 1 Part Schematics Acquired 1 | . . 1 Parts Damaged . | . . . Bothacking | -11 -10 -9 ------------ Run | Scr Mat Mat Used RIF Installer . | . . . Robots Hacked . | . . . Non-combat . | . . . Combat . | . . . Robot Hacks Applied . | . . . Relay Couplers Released . | . . . Robots Rewired . | . . . Allies Hacked . | . . . Hacks Repelled . | . . . Allies | -11 -10 -9 -------- Run | Scr Mat Mat Total Allies . | . . . Largest Group . | . . . Highest-Rated Group . | . . . Highest-Rated Ally . | . . . Total Orders . | . . . Ally Attacks . | . . . Total Damage . | . . . Kills . | . . . Allies Corrupted . | . . . Allies Melted . | . . . Intel | -11 -10 -9 ------- Run | Scr Mat Mat Robot Analysis Total . | . . . Derelict Logs Recovered . | . . . Drone Launches . | . . . Drone Recoveries . | . . . Exploration | -11 -10 -9 ------------- Run | Scr Mat Mat Turns Passed 737 | 45 253 439 Spaces Moved 767 | 39 209 519 Core 108 | 39 . 69 Treads . | . . . Legs 115 | . 115 . Wheels . | . . . Hover . | . . . Flight 544 | . 94 450 Fastest Speed 34 | 50 37 34 Average Speed 56 | 82 83 42 Slowest Speed 280 | 100 280 120 Overloaded Moves . | . . . Propulsion Burnouts . | . . . Robots Hopped 2 | . . 2 Cave-ins Triggered . | . . . Exploration Rate (%) 39 | 4 43 70 Regions Visited 2 Branch Regions . Pre-discovered Areas . | . . . Known Exits Taken 1 | . 1 . Unknown Exits Taken 1 | 1 . . Scrap Searched . | . . . Spaces Dug . | . . . Terrain Destroyed 165 | . . 165 Melee . | . . . Projectile . | . . . AOE 165 | . . 165 Actions | -11 -10 -9 --------- Run | Scr Mat Mat Total 1005 | 49 263 693 Wait 123 | . 17 106 Move 761 | 38 208 515 Hop 2 | . . 2 Pick Up 19 | 7 5 7 Fast Attach 6 | 1 2 3 Attach 15 | 1 5 9 Detach 3 | . 2 1 Swap . | . . . Drop 13 | . 5 8 Fire 62 | 2 18 42 Melee . | . . . Ram . | . . . Kick 1 | . 1 . Crush . | . . . Escape Stasis . | . . . Rewire . | . . . Trap . | . . . Miscellaneous . | . . . Route ------- -11/Scrapyard -10/Materials (discovered 4 exits: *Mat x3 / [*Min]) -9/Materials (discovered 3 exits: [*Min] / [*Sto x2]) History --------- Turn | Location | Event 31 | -11/Scrapyard | Discovered new exit (range 12) 46 | -11/Scrapyard | Entered Materials 113 | -10/Materials | Discovered new exit (range 7) 268 | -10/Materials | Identified exit to Materials 299 | -10/Materials | Entered another Materials area 299 | -9/Materials | Evolved 2 slots: Propulsion x1, Utility x1 299 | -9/Materials | Discovered new exit (range 9) 339 | -9/Materials | Build established: Mutant 451 | -9/Materials | Discovered new exit (range 16) 555 | -9/Materials | Destroyed 13 combat bots 671 | -9/Materials | Discovered new exit (range 15) 685 | -9/Materials | Core integrity fell below 50% 687 | -9/Materials | Lost 5 parts (1p3n1w) 699 | -9/Materials | First assault squad dispatched 701 | -9/Materials | Core integrity fell below 20% 738 | -9/Materials | Self-destructed Last Messages --------------- 00699_ ALERT: Significant disruption in Zone 1F, assault forces dispatched. [Achievement: Significant Disruption] 00704_ Connecting with Terminal... >>Recall(Assault) Establishing remote squad link... Recalled assault squad NS914A23YL. 00705_ Destroyed Lgt. Assault Rifle. 00705_ Destroyed Flight Unit. 00705_ Atomic Centrifuge disabled. 00706_ K-01 Serf collects debris. 00707_ K-01 Serf destroyed. 00707_ Destroyed Wheel. 00707_ Destroyed Backup Power I. 00707_ Destroyed Flight Unit. 00707_ S-10 Pest destroyed. 00707_ K-01 Serf destroyed. 00713_ Acquired 14 matter. 00722_ W-16 Scout destroyed. 00736_ Acquired Shotgun. Map ----- +----------------------------------------------------+ | = #????????? | | * ########## | | = // # # | | ##### # "### # * = # # | | ????###### * # # ! # # | | ?????????## = # """ # # """ # | | ??????????# [ """ # + """"" # | | ?????????# """ # !% # """"" ?? | | ?????????## """ # "T"#### """"" ?? | | ??????????# """ ## ######??# """ ??? | | ??????????# ## ###???????# ??? | | ??????????# # ## #?????????#######??? | | ###???????# # ## #??????????????????? | | #???????### ##### ## #??????????????????? | | #??????#######???? ## #??????????????????? | | ######## ############ ###????????????????? | | # ## #????????????????? | | # ## #????????????????? | | !# """ ## #????????????????? | | # """ ## ##########+### +????????????????? | | # """ ### ##????# ## #????????????????? | | #?# #?????# !! #? #????????????????? | | ### #?????# !! #? #????????????????? | | # ## ####### !! #? ????????????????? | | = ## + #? ???????????????? | | #* ## ###???# @ #? T ??????????????? | | # #?????########? ?????????????? | | # ##+####???????????? ? ####????????????? | | ### # #??????????????##???????????????? | | #### ## """"" #???????????????????????????????? | | # ## """"" #???????????????????????????????? | | T # ## """"" #??????????????????????????????? | | + + [##??????????????????????????????? | | # ## #???????????????????????????????? | | ###### ! #???????????????????????????????? | | "" #????#[[ #???????????????????????????????? | | "" #????#[= #???????????????????????????????? | | "" #????##########???????????????????????????????? | | #?????????????????????????????????????????????? | | ####?????????????????????????????????????????????? | | ?????????????????????????????????????????????????? | | | | | | | | | | | | | | | | | | | +----------------------------------------------------+ Best States ------------- Heat Dissipation 28 Energy Generation 10 Energy Capacity 250 Matter Stores 300 Matter Capacity 300 Sight Range 16 Terrain Scan Range 14 Terrain Scan Density 10 Resistance: KI 20 Resistance: TH 20 Resistance: EX 20 Resistance: EM 20 Resistance: I 20 Resistance: S 20 Resistance: P 20 Evasion (%) 63 Offensive Hacking 10 Item Schematics ----------------- Terrain Scanner | -9/Materials | Scanalyzed Robot Schematics ------------------ None Fabricated ------------ Nothing Alien Tech Used ----------------- None Achievements -------------- Quick And Dirty Significant Disruption Challenges ------------ None Game ------ Seed 140 Manual? 1 Play Time 00:26:29 Cumulative 25.7 hours Start 2020.02.20 @ 18:22:26 End 2020.02.20 @ 18:46:10 Sessions 1 Manual Loads 0 Difficulty Adventurer Special Mode None Game No. 27 Rogue 19 Adventurer 1 Explorer 7 Win Type - Total 0 Types 0/0/0/0/0/0/0 Lore% 19 Gallery% 29 Achievement% 22 Wizard Run 0 Options --------- ASCII 0 Keyboard 0 Movement Mouse Keybinds 0 Fullscreen 0 Font 16/SmallcapsGlow Map View 76x50 Tactical HUD 1 Map Filters NONE Filters NONE Steam 1 RUN: a9a5287b-e880-423b-ac31-aa90fd4a24be